Cogmind - Beta 17 @@@ ROGUE MODE // 2026.07.31 @ 18:22:56 Player: Petvaria Result: Destroyed by S-10 Pest with Light Assault Rifle Performance ------------- Evolutions (0) 0 Regions Visited (4) 800 Robots Destroyed (25) 125 Value Destroyed (559) 559 Prototype IDs (26) 520 Alien Tech Used (0) 0 Bonus (300) 300 TOTAL SCORE: 2304 Bonus ------- Aligned with FarCom 300 Cogmind --------- Core Integrity 0/250 Matter 210/300 Energy 160/160 System Corruption 2% Temperature Cool (0) Movement Treading (160) Location -9/Mines Parts ------- > --- POWER (1) -------- Light Nuclear Core > --- PROPULSION (2) --- Light Treads Light Treads > --- UTILITY (2) ------ Large Storage Unit Light Armor Plating > --- WEAPON (2) ------- 8R-AWN's Boregun Longsword +1 > --- INVENTORY (15) --- Improved Ion Engine Reinforced Fission Core Light Treads Gravity Neutralizer Improved Terrain Scanner Advanced Weapon Cycler Light Armor Plating AS-neutralizer No. 17b Small Laser Beam Cannon Beam Cannon XL Autogun Array Peak State ------------ > --- POWER ------------ Reinforced Fission Core > --- PROPULSION ------- Light Treads Light Treads > --- UTILITY ---------- Large Storage Unit Light Armor Plating > --- WEAPON ----------- 8R-AWN's Boregun Longsword +1 > --- INVENTORY -------- Improved Ion Engine Light Nuclear Core Light Treads Gravity Neutralizer Improved Terrain Scanner Advanced Weapon Cycler Light Armor Plating AS-neutralizer No. 17b Small Laser Beam Cannon Beam Cannon XL Autogun Array [Rating: 34] Favorites ----------- Power Improved Ion Engine Engine Improved Ion Engine Power Core Light Nuclear Core Propulsion Light Treads Treads Light Treads Utility Large Storage Unit Device Seismic Detector Storage Large Storage Unit Protection Light Armor Plating Weapon Light Assault Rifle Energy Gun Small Laser Energy Cannon Beam Cannon Ballistic Gun Light Assault Rifle Slashing Weapon Longsword +1 Build | -11 -10 -10 -10 -9 ------- Run | Yrd Mat Min Exi Min Slots Evolved . | . . . . . Power . | . . . . . Propulsion . | . . . . . Utility . | . . . . . Weapon . | . . . . . Parts Attached 30 | 7 9 2 12 . Power 5 | 1 2 . 2 . Engine 3 | 1 2 . . . Core 2 | . . . 2 . Reactor . | . . . . . Propulsion 4 | 2 . . 2 . Treads 4 | 2 . . 2 . Leg . | . . . . . Wheel . | . . . . . Hover . | . . . . . Flight . | . . . . . Utility 11 | 2 4 1 4 . Device 3 | 1 . . 2 . Storage 3 | 1 1 1 . . Processor . | . . . . . Hackware . | . . . . . Protection 5 | . 3 . 2 . Artifact . | . . . . . Weapon 10 | 2 3 1 4 . Energy Gun 3 | 1 2 . . . Energy Cannon 2 | . . . 2 . Ballistic Gun 4 | 1 1 1 1 . Ballistic Cannon . | . . . . . Launcher . | . . . . . Special Weapon . | . . . . . Impact Weapon . | . . . . . Slashing Weapon 1 | . . . 1 . Piercing Weapon . | . . . . . Special Melee Weapon . | . . . . . Unidentified Prototypes 3 | . . . 3 . Parts Lost 4 | . 2 . 2 . Power 1 | . 1 . . . Propulsion 2 | . . . 2 . Utility . | . . . . . Weapon 1 | . 1 . . . Highest Loss Streak 2 | . 1 . 2 . To Critical Strikes 1 | . . . 1 . Average Backups 12 | 3 13 13 12 12 Power 1 | . . 1 2 2 Propulsion 2 | 1 2 2 2 1 Utility 5 | . 6 6 3 5 Weapon 3 | . 2 3 3 4 Tool/Special . | . . . . . Unused Backups 18 | . 5 3 5 5 Power 3 | . . . 3 . Propulsion 5 | . 4 . . 1 Utility 5 | . . 1 1 3 Weapon 5 | . 1 2 1 1 Tool/Special . | . . . . . Average Slot Usage (%) 99 | . 99 100 100 100 Engine 13 | . 14 14 13 . Treads 27 | . 27 28 28 28 Device 4 | . 4 11 2 . Storage 14 | . 14 14 14 14 Protection 9 | . 9 3 11 14 Energy Gun 9 | . 6 14 12 . Ballistic Gun 16 | . 21 14 12 14 Peak Build Rating 34 | 7 9 9 34 32 Average Rating 9 | 5 8 9 12 32 On Entrance 11 | . 7 9 9 32 Avg Prop Armor Cover (%) . | . . . . . Naked Turns . | . . . . . Heaviest Build 53 | 15 33 32 53 37 Greatest Support 52 | 40 40 40 52 40 Greatest Overweight (x) 1 | . . . 1 . Average Overweight (x) . | . . . . . Largest Inventory Capacity 15 | 8 15 15 15 15 Average Capacity 14 | 6 13 15 15 15 Most Carried 15 | 7 15 15 15 15 Average Carried 13 | 3 13 14 13 15 Final Capacity 15 | 8 15 15 15 15 Final Carried 15 | 7 15 15 15 15 Class Distribution -------------------- 100% | Mutant Dominant Class ---------------- Mutant | -10/Materials Mutant | -10/Mines Mutant | -10/Exiles Mutant | -9/Mines Resources | -11 -10 -10 -10 -9 ----------- Run | Yrd Mat Min Exi Min Matter Collected 783 | 279 344 26 134 . Remotely . | . . . . . Salvage Created 1116 | 113 715 . 163 125 Parts 59 | 10 40 . 3 6 Haulers Intercepted 2 | . 2 . . . Recyclers Shooed 1 | . 1 . . . Parts Field Recycled . | . . . . . Retrieved Matter . | . . . . . Parts Self-Destructed . | . . . . . Prevented . | . . . . . Parts Restored . | . . . . . Kills | -11 -10 -10 -10 -9 ------- Run | Yrd Mat Min Exi Min Combat Hostiles Destroyed 23 | . 16 . 5 2 Melee 1 | . . . 1 . Guns 17 | . 15 . . 2 Cannons 4 | . . . 4 . AOE 1 | . 1 . . . Classes Destroyed 6 | 2 3 . 1 . Tunneler 2 | 2 . . . . Hauler 2 | . 2 . . . Recycler 2 | 1 . . . 1 Swarmer 5 | . 3 . . 2 Grunt 13 | . 13 . . . Assembled 4 | . . . 4 . Best Kill Streak 4 | 3 4 . 4 3 Combat Bots Only 4 | . 4 . 4 2 Max Kills in Single Turn 2 | 1 1 . 2 2 Gunslinging . | . . . . . Exploded 1 | . 1 . . . Melee 1 | . . . 1 . Uniques/NPCs Destroyed 1 | . . . 1 . 8R-AWN (-10/Exiles) Combat | -11 -10 -10 -10 -9 -------- Run | Yrd Mat Min Exi Min Hostile Shots Fired 167 | . 96 . 38 33 Missed 34 | . 17 . 6 11 Hits 133 | . 79 . 32 22 Melee 3 | . . . 3 . Projectile 130 | . 79 . 29 22 Critical Strikes 10 | . . . 10 . Damage Taken 1680 | . 922 . 586 172 Core 257 | . 150 . 78 29 Absorbed by Shields . | . . . . . Regen/Repaired (Parts) 191 | . 191 . . . Core Remaining (%) 100 | 100 . . . . Volleys Fired 99 | 3 81 . 5 10 Largest 2 | 2 2 . 2 1 Hottest 120 | 60 60 . 120 30 Shots Fired 183 | 6 157 . 10 10 Gun 173 | 6 157 . . 10 Cannon 10 | . . . 10 . Launcher . | . . . . . Special . | . . . . . Kinetic 129 | 3 116 . . 10 Thermal 24 | . 14 . 10 . Explosive . | . . . . . Electromagnetic 30 | 3 27 . . . Robot Hit Streak 16 | 4 16 . 4 1 Robot Miss Streak 6 | . 6 . 1 3 Penetration Max 1 | . . . . 1 Secondary Targets 1 | . 1 . . . Max Gunslinging Chain 1 | . 1 . . . Shots Hit Robots 135 | 4 107 . 22 2 Core Hits 55 | 3 37 . 12 3 Critical Kills 2 | . . . . 2 Critical Parts Destroyed 2 | . 1 . . 1 Critical Strikes 6 | . 1 . 2 3 Destroy 4 | . 1 . . 3 Sever 2 | . . . 2 . Melee Attacks 18 | . . . 17 1 Impact . | . . . . . Slashing 18 | . . . 17 1 Piercing . | . . . . . Sneak Attacks . | . . . . . Combat Hostiles . | . . . . . Follow-up Attacks . | . . . . . Damage Inflicted 2325 | 58 1317 4 863 83 Guns 1356 | 58 1215 . . 83 Cannons 124 | . . . 124 . Explosions 55 | . 55 . . . Melee 739 | . . . 739 . Ramming 51 | . 47 4 . . Kinetic 964 | 13 868 . . 83 Thermal 294 | . 170 . 124 . Explosive . | . . . . . Electromagnetic 277 | 45 232 . . . Impact . | . . . . . Slashing 739 | . . . 739 . Piercing . | . . . . . Highest Corruption 2 | . 2 2 2 2 Average Corruption 1 | . 1 2 2 2 Corruption Purged . | . . . . . Corruption Blocked . | . . . . . Effects 19 | . . 4 15 . Message Errors 8 | . . 2 6 . Matter Fused 7 | . . . 7 . Heat Flow Errors 1 | . . . 1 . Data Loss (minor) 3 | . . 2 1 . Overload Shots . | . . . . . Overflow Damage . | . . . . . Projectiles . | . . . . . Explosions . | . . . . . Melee . | . . . . . Knockbacks . | . . . . . Impact . | . . . . . Kinetic . | . . . . . Secondary . | . . . . . Self-Inflicted Damage 42 | . 42 . . . Shots 1 | . 1 . . . Rammed 11 | . 10 1 . . Targets Rammed 11 | . 10 1 . . Kicked . | . . . . . Crushed . | . . . . . Highest Temperature 360 | . 168 . 360 . Average Temperature 57 | . 32 . 164 . Received Heat Transfer 414 | . 414 . . . Siege Activations . | . . . . . Martial Activations . | . . . . . Shielding Activations . | . . . . . Robots Disrupted . | . . . . . Combat Hostiles . | . . . . . Robots Corrupted . | . . . . . Combat Hostiles . | . . . . . Parts Fried . | . . . . . Impact Corruptions . | . . . . . Robots Melted . | . . . . . Combat Hostiles . | . . . . . Parts Melted . | . . . . . Heat Transferred 609 | . 350 . 259 . Parts Sabotaged . | . . . . . Parts Stolen . | . . . . . Parts Stripped . | . . . . . Power Chain Reactions 1 | . 1 . . . Alert | -11 -10 -10 -10 -9 ------- Run | Yrd Mat Min Exi Min Maximum Alert Level . | . . . . . Low Security (%) 100 | 100 100 100 . 100 Level 1 . | . . . . . Level 2 . | . . . . . Level 3 . | . . . . . Level 4 . | . . . . . Level 5 . | . . . . . High Security . | . . . . . Max Security . | . . . . . Peak Influence 179 | 10 179 27 . 46 Initial 27 | . . 27 . . Average 54 | 1 73 2 . 23 Influence Increases 600 | 15 529 . . 56 Destroy 0b10 Robot/C 360 | . 320 . . 40 Destroy 0b10 Robot/NC 30 | 15 10 . . 5 Destroy Leader 84 | . 74 . . 10 Successful Hack 32 | . 32 . . . Select Force Hacks 30 | . 30 . . . Disable Machine 15 | . 15 . . . Destroy Structure 4 | . 3 . . 1 Lose Combat Pursuer 45 | . 45 . . . Influence Decreases 554 | 15 457 72 . 10 Entered New Map 45 | . . 45 . . Time Decay 489 | 15 437 27 . 10 Lost Part 20 | . 20 . . . Squads Dispatched 4 | . 4 . . . Investigation 2 | . 2 . . . Extermination . | . . . . . Reinforcement 2 | . 2 . . . Assault . | . . . . . Garrison . | . . . . . Intercept . | . . . . . Searches Triggered . | . . . . . Construction Impeded . | . . . . . Haulers Reinforced . | . . . . . Active Scanning Responses . | . . . . . Cargo Convoy Interrupts . | . . . . . Stealth | -11 -10 -10 -10 -9 --------- Run | Yrd Mat Min Exi Min Distress Signals 4 | . 4 . . . Communications Jammed . | . . . . . Distress Signals . | . . . . . Times Spotted 41 | . 31 . 6 4 Peak Tracking Total 10 | . 5 . 10 4 Tactical Retreats 3 | . 3 . . . Traps | -11 -10 -10 -10 -9 ------- Run | Yrd Mat Min Exi Min Traps Triggered 3 | . 3 . . . Indirectly . | . . . . . Trap Hack Attempts . | . . . . . Triggered . | . . . . . Disarmed . | . . . . . Reprogrammed . | . . . . . Reused 1 | . . . 1 . Traps Extracted . | . . . . . Installed 3 | . . . 3 . Triggered . | . . . . . Most Traps Carried 3 | . . 3 3 . Machines | -11 -10 -10 -10 -9 ---------- Run | Yrd Mat Min Exi Min Machines Disabled 2 | . 1 . 1 . Max in Single Turn 1 | . 1 . 1 . Machines Repaired . | . . . . . Machines Dismantled . | . . . . . Machines Sabotaged . | . . . . . Overloaded Fab Kills . | . . . . . Hacking | -11 -10 -10 -10 -9 --------- Run | Yrd Mat Min Exi Min Machines Accessed 11 | . 9 . 2 . Terminals 6 | . 6 . . . Fabricators . | . . . . . Repair Stations 1 | . 1 . . . Recycling Units 2 | . 2 . . . Scanalyzers . | . . . . . Garrison Access . | . . . . . Total Hacks 23 | . 21 . 2 . Successful 15 | . 13 . 2 . Failed 8 | . 8 . . . Catastrophic . | . . . . . Database Lockouts . | . . . . . Manual 18 | . 17 . 1 . Terminals 13 | . 13 . . . Fabricators . | . . . . . Repair Stations 4 | . 4 . . . Recycling Units 4 | . 4 . . . Scanalyzers . | . . . . . Garrison Access . | . . . . . Terminal Hacks 4 | . 2 . 2 . Record 1 | . . . 1 . Part Schematic 1 | . 1 . . . Robot Schematic 1 | . 1 . . . Proto ID Catalog 1 | . . . 1 . Fabricator Hacks . | . . . . . Repair Station Hacks 4 | . 4 . . . Scan Component 2 | . 2 . . . Repair 2 | . 2 . . . Recycling Unit Hacks . | . . . . . Scanalyzer . | . . . . . Garrison Access Hacks . | . . . . . Unauthorized Hacks 7 | . 7 . . . Terminals 6 | . 6 . . . Botnet 1 | . 1 . . . Skim 5 | . 5 . . . Fabricators . | . . . . . Repair Stations . | . . . . . Recycling Units 1 | . 1 . . . Tunnel 1 | . 1 . . . Scanalyzers . | . . . . . Garrison Access . | . . . . . Data Cores Recovered . | . . . . . Used . | . . . . . Hacking Detections 6 | . 6 . . . Full Trace Events . | . . . . . Feedback Events . | . . . . . Feedback Blocked . | . . . . . Robot Schematics Acquired 1 | . 1 . . . Robots Built . | . . . . . Authchips . | . . . . . Time . | . . . . . Total Robot Build Rating . | . . . . . Part Schematics Acquired 1 | . 1 . . . Parts Built . | . . . . . Authchips . | . . . . . Time . | . . . . . Total Part Build Rating . | . . . . . Part Studies Acquired . | . . . . . Parts Repaired 2 | . 2 . . . Time 52 | . 52 . . . Parts Recycled . | . . . . . Recycled Matter . | . . . . . Retrieved Matter . | . . . . . Retrieved Components . | . . . . . Parts Scanalyzed . | . . . . . Part Schematics Acquired . | . . . . . Parts Damaged . | . . . . . Bothacking | -11 -10 -10 -10 -9 ------------ Run | Yrd Mat Min Exi Min Used RIF Installer . | . . . . . Robots Hacked . | . . . . . Non-combat . | . . . . . Combat . | . . . . . Robot Hacks Applied . | . . . . . Relay Couplers Released . | . . . . . Fabnet Peak Effective % . | . . . . . Robots Rewired . | . . . . . Allies Hacked . | . . . . . Hacks Repelled . | . . . . . Allies | -11 -10 -10 -10 -9 -------- Run | Yrd Mat Min Exi Min Total Allies . | . . . . . Largest Group . | . . . . . Highest-Rated Group . | . . . . . Highest-Rated Ally . | . . . . . Total Orders . | . . . . . Ally Attacks . | . . . . . Total Damage . | . . . . . Kills . | . . . . . Allies Corrupted . | . . . . . Allies Melted . | . . . . . Intel | -11 -10 -10 -10 -9 ------- Run | Yrd Mat Min Exi Min Active Infowar (turns) 1063 | 24 442 336 261 . Seismic 1063 | 24 442 336 261 . Robot Analysis Total . | . . . . . Derelict Logs Recovered 1 | . . 1 . . Drone Launches . | . . . . . Drone Recoveries . | . . . . . Exploration | -11 -10 -10 -10 -9 ------------- Run | Yrd Mat Min Exi Min Turns Passed 3474 | 114 1493 410 1432 25 Spaces Moved 1821 | 59 692 248 820 2 Core 8 | 8 . . . . Treads 1813 | 51 692 248 820 2 Legs . | . . . . . Wheels . | . . . . . Hover . | . . . . . Flight . | . . . . . Fastest Speed 50 | 50 160 160 160 160 Average Speed 160 | 145 160 160 161 160 Slowest Speed 240 | 160 160 160 240 160 Overloaded Moves . | . . . . . Propulsion Burnouts . | . . . . . Robots Hopped . | . . . . . Potential Cave-ins . | . . . . . Cave-ins Triggered . | . . . . . Exploration Rate (%) 45 | 4 96 62 64 3 Regions Visited 4 Branch Regions 3 Pre-discovered Areas 6 | . 4 1 1 . Known Exits Taken 2 | . 1 . 1 . Unknown Exits Taken 2 | 1 . 1 . . Scrap Searched 1 | . . 1 . . Spaces Dug . | . . . . . Terrain Destroyed 5 | . 2 . . 3 Melee . | . . . . . Projectile 3 | . . . . 3 AOE 2 | . 2 . . . Terrain Rammed . | . . . . . Walls Destroyed . | . . . . . Machines Disabled . | . . . . . Actions | -11 -10 -10 -10 -9 --------- Run | Yrd Mat Min Exi Min Total 2190 | 82 928 264 903 13 Wait 122 | . 106 . 16 . Move 1817 | 58 691 247 819 2 Hop . | . . . . . Pick Up 53 | 14 18 6 15 . Fast Attach 2 | . 2 . . . Attach 11 | 7 2 . 2 . Detach . | . . . . . Swap 21 | . 8 3 10 . Drop 33 | . 10 7 16 . Fire 99 | 3 81 . 5 10 Melee 18 | . . . 17 1 Ram . | . . . . . Kick . | . . . . . Crush 11 | . 10 1 . . Escape Stasis . | . . . . . Rewire . | . . . . . Trap 3 | . . . 3 . Miscellaneous . | . . . . . Route ------- -11/Scrapyard -10/Materials (discovered 6 exits: *Mat x3 / *Min x2 / [*Sub]) -10/Mines -10/Exiles (discovered 2 exits: *Min x2) -9/Mines History --------- Turn | Location | Event 5 | -11/Scrapyard | Discovered new exit (range 15) 115 | -11/Scrapyard | Entered Materials 306 | -10/Materials | Build established: Mutant 689 | -10/Materials | Core integrity fell below 50% 828 | -10/Materials | Repaired Lgt. Treads 856 | -10/Materials | Repaired Lgt. Treads 909 | -10/Materials | Discovered new exit (range 16) 1082 | -10/Materials | Discovered new exit (range 12) 1232 | -10/Materials | Discovered new exit (range 10) 1357 | -10/Materials | Discovered new exit (range 13) 1361 | -10/Materials | Identified exit to Mines 1394 | -10/Materials | Learned Recycling recycling unit intel 1435 | -10/Materials | Identified exit to Materials 1435 | -10/Materials | Learned location of 1 exit from Materials 1439 | -10/Materials | Learned location of Mines (-9) 1440 | -10/Materials | Loaded intel: 22 non-interactive machine locations 1442 | -10/Materials | Learned 2 Storage zone layouts 1444 | -10/Materials | Learned location of 2 exits from Materials 1455 | -10/Materials | Learned Recycling recycling unit intel 1608 | -10/Materials | Entered Mines 1609 | -10/Mines | Learned location of Storage (-8) 1674 | -10/Mines | Met a Derelict bent on vengeance 1681 | -10/Mines | Assembled infested the area 1788 | -10/Mines | Learned Materials security intel 1812 | -10/Mines | Found a hidden stash of uninstalled traps 1976 | -10/Mines | Found DCF Scrap (12 items) 2010 | -10/Mines | Deemed a non-threat by the Exiles lab entrance 2012 | -10/Mines | Discovered new exit (range 5) 2018 | -10/Mines | Entered Exiles 2019 | -10/Exiles | Identified exit to Mines 2057 | -10/Exiles | Met 8R-AWN 2084 | -10/Exiles | Met EX-HEX 2134 | -10/Exiles | Met EX-BIN 2154 | -10/Exiles | Met EX-DEC 2161 | -10/Exiles | Learned location of Zion (-7) 2223 | -10/Exiles | Aligned with FarCom system 2225 | -10/Exiles | Given EX-Vault access code 2262 | -10/Exiles | Opened EX-Vault 2275 | -10/Exiles | Found Longsword +1 2287 | -10/Exiles | Found XL Autogun Array 2320 | -10/Exiles | Warned to stay clear of 0b10 Research branches 3004 | -10/Exiles | Warned about trapping Exiles lab 3228 | -10/Exiles | Attacked by the Exiles 3340 | -10/Exiles | Core integrity fell below 20% 3356 | -10/Exiles | Destroyed 8R-AWN 3363 | -10/Exiles | Found Prototype Ballistic Gun 3364 | -10/Exiles | Identified 8R-AWN's Boregun 3373 | -10/Exiles | Found Prototype Device 3374 | -10/Exiles | Identified AS-neutralizer No. 17b 3450 | -10/Exiles | Stole two prototypes: Longsword +1, XL Autogun Array 3450 | -10/Exiles | Entered Mines 3475 | -9/Mines | Destroyed by S-10 Pest with Light Assault Rifle Last Messages --------------- Destroyed Flight Unit. HV Slug penetrates Wall. HV Slug penetrates S-10 Pest. HV Slug penetrates Wall. R-06 Scavenger collects Lgt. Ion Engine. HV Slug penetrates Wall. R-06 Scavenger collects Lgt. Assault Rifle. HV Slug penetrates Wall. R-06 Scavenger collects Flight Unit. R-06 Scavenger suffers critical hit (Destroy). R-06 Scavenger destroyed. HV Slug penetrates S-10 Pest. S-10 Pest destroyed. HV Slug penetrates R-06 Scavenger. R-06 Scavenger suffers critical hit (Destroy). R-06 Scavenger destroyed. K-01 Serf collects debris. HV Slug penetrates Wall. K-01 Serf collects debris. HV Slug penetrates Wall. Map ----- +----------------------------------------------------+ | | | | | | | | | | | | | | | | | | | | | | | | | ?????????????????????????????????????????????????? | | ?????????????????????????????????????????????????? | | ?????????????????????????????????????????????????? | | ?????????????????????????????????????????????????? | | ?????????????????????????????????????????????????? | | ?????????????????????????????????????????????????? | | ?????????????????????????????????????????????????? | | ?????????????????????#???????????????????????????? | | ????????????????????? ??????????????????????????? | | ?????????????????????? ####??????????????????????? | | ??????????????????????? #??????????????????????? | | ???????????????????????#k #??????????????????????? | | ???????????????????????#=!#??????????????????????? | | ???????????????????????#%@#?????#????????????????? | | ???????????????????????#s*%# ##???????????????? | | ???????????????????????#s[% #???????????????? | | ????????????????????# !*= #???????????????? | | ????????????????????# ## #???????????????? | | ????????????????????#??## ##???????????????? | | ????????????????????????##### #????????????????? | | ?????????????????????????????####????????????????? | | ?????????????????????????????????????????????????? | | ?????????????????????????????????????????????????? | | ?????????????????????????????????????????????????? | | ?????????????????????????????????????????????????? | | ?????????????????????????????????????????????????? | | ?????????????????????????????????????????????????? | | ?????????????????????????????????????????????????? | | ?????????????????????????????????????????????????? | | ?????????????????????????????????????????????????? | | ?????????????????????????????????????????????????? | | ?????????????????????????????????????????????????? | | ?????????????????????????????????????????????????? | | ?????????????????????????????????????????????????? | | ?????????????????????????????????????????????????? | | ?????????????????????????????????????????????????? | | ?????????????????????????????????????????????????? | | ?????????????????????????????????????????????????? | +----------------------------------------------------+ Best States ------------- Heat Dissipation 25 Energy Generation 19 Energy Capacity 310 Matter Stores 300 Matter Capacity 300 Sight Range 16 Terrain Scan Density 10 Additional Mass Support 12 Armor Coverage 150 Evasion (%) 40 Recoil Reduction 2 Item Schematics ----------------- Huge Storage Unit | -10/Materials | Hacked Robot Schematics ------------------ M-13 Machinist | -10/Materials | Hacked Fabricated ------------ Nothing Repaired ---------- Lgt. Treads | 22% | -10/Materials Lgt. Treads | 40% | -10/Materials Studied --------- None Alien Tech Used ----------------- None Achievements -------------- None Challenges ------------ None Game ------ Seed RiotGlidesysMatrix Manual? 0 Play Time 00:19:07 Cumulative 539.0 hours Start 2026.07.31 @ 18:03:09 End 2026.07.31 @ 18:22:56 Sessions 1 Manual Loads 0 Difficulty Rogue Special Mode None Game No. 305 Rogue 305 Adventurer 0 Explorer 0 Win Type - Total 36 Types 17/2/7/2/1/1/1/2/1/2 Lore% 97 Gallery% 92 Achievement% 85 Wizard Run 0 Options --------- Layout 1 ASCII 0 Keyboard 0 Movement Numpad Keybinds 0 Fullscreen 1 Font 24/Proggy Map View 50x35 Zoom Use 0% Tactical HUD 0 Map Filters NONE Filters NONE Steam 1 RUN: 5f65a2b5-7e83-45c6-b773-6cf9ce7141a5